{"text_format":"2","workbook":"xlsx","n_sheets":1,"sheets":["Erősáram"],"not_rendered":{"charts":0,"images":0,"macros":0,"external_links":0,"defined_names":0,"comments":0,"pivot_tables":0},"unopened":[],"bounds":{"document_bytes":16777216,"sheet_cells":100000,"run_cost":"one","rows_first":2000,"rows_last":500,"rows_between":2000,"halvings":0,"cell_chars":16384,"cell_head_chars":4096},"cells_cut":0,"cells_raw":0,"read":"whole","date_system":"1900"}

{"sheet":"Erősáram","index":0,"n_rows":66,"n_cols":8,"rows_kept":66,"cut":false,"hidden":false,"merged":[[20,6,20,7],[33,6,33,7],[49,6,49,7],[59,6,59,7]]}
[]
[null,null,null,"               KÖLTSÉGVETÉS"]
[]
[null,null,"SZTE TTIK mikrobiológiai Intézet  elektromos szerelés, alagsor és 310-es szoba"]
[]
[]
[null,"Mélyfagyasztó megtáplálása"]
[]
["S.sz","Megnevezés","Menny.","Me","Anyag","Díj","Anyag Ö","Díj Ö"]
[]
[]
[]
[1,"Kötődoboz elhelyezése 100x100 mm, 2 db tömszelencével",1,"db",null,null,{"$f":"C13*E13","v":0},{"$f":"C13*F13","v":0}]
[2,"NYM 3x 6 mm2 kiskábel bilincses tartószerkezetre szerelve",25,"m",null,null,{"$f":"C14*E14","v":0},{"$f":"C14*F14","v":0}]
[null,"Műanyag kábelcsatorna 1 szál kábel részére 40x20 mm",20,"m",null,null,{"$f":"C15*E15","v":0},{"$f":"C15*F15","v":0}]
[3,"Elosztóban szükséges leágazások kiépítése:1 db 40A, 30mA-es 2 pólusú ÁVK, 1db C32A 1 p. kismegszakító,",1,"klt",null,null,0,0]
[4,"Érintésvédelmi mérés jegyzőkönyv készítéssel",1,"klt",null,null,0,0]
[null,"ÖSSZESEN:",{"$nulls":4},{"$f":"SUM(G12:G17)","v":0},{"$f":"SUM(H12:H17)","v":0}]
[]
[]
[null,"Összesen anyag+díj",{"$nulls":4},{"$f":"G18+H18","v":0}]
[]
[null,"Nitrogénes hűtő  és rázókészülékek megtáplálása"]
[]
[1,"DLP csatorna elhelyezése 40X20 mm",8,"m",null,null,{"$f":"C25*E25","v":0},{"$f":"C25*F25","v":0}]
[2,"Mü 21 gégecső",12,"m"]
[3,"NYM 3x2,5 mm2 kiskábel, MÜ csatornába és álmennyezet fölött szerelve",20,"m",null,null,0,0]
[4,"2+F falonkívüli 16 A dugalj",4,"db",null,null,{"$f":"C28*E28","v":0},{"$f":"C28*F28","v":0}]
[5,"E3 elosztóban szükséges leágazások kiépítése:1 db 25A, 30mA-es 2 pólusú ÁVK, 2db C16A 1 p. kismegszakító,",1,"klt",null,null,0,0]
[6,"Érintésvédelmi mérés jegyzőkönyv készítéssel",1,"klt",null,null,{"$f":"C30*E30","v":0},{"$f":"C30*F30","v":0}]
[]
[null,"ÖSSZESEN:",{"$nulls":4},{"$f":"SUM(G25:G30)","v":0},{"$f":"SUM(H25:H30)","v":0}]
[]
[null,"Összesen anyag+díj",{"$nulls":4},{"$f":"G32+H32","v":0}]
[]
[]
[null,"310-es labor"]
[]
[]
[1,"DLP csatorna elhelyezése 40X20 mm",8,"m",null,null,{"$f":"C40*E40","v":0},{"$f":"C40*F40","v":0}]
[2,"DLP csatorna elhelyezése105X50 mm",13,"m",null,null,0,0]
[3,"NYM 3x2,5 mm2 kiskábel, MÜ csatornába és álmennyezet fölött szerelve",20,"m",null,null,{"$f":"C42*E42","v":0},{"$f":"C42*F42","v":0}]
[4,"Folyosói elosztóban szükséges leágazások kiépítése:1 db 25A, 30mA-es 2 pólusú ÁVK, 3db C16A 1 p. kismegszakító,",1,"klt",null,null,{"$f":"C43*E43","v":0},{"$f":"C43*F43","v":0}]
[5,"LEGRAND MOSAIC 4x2+F fehér dugalj DLP csatornába szerelve",3,"db",null,null,{"$f":"C44*E44","v":0},{"$f":"C44*F44","v":0}]
[null,"16 A-es kétpólusú kapcsoló Mü csatornába szerelve",1,"db",null,null,0,0]
[6,"Érintésvédelmi mérés jegyzőkönyv készítéssel",1,"klt",null,null,{"$f":"C46*E46","v":0},{"$f":"C46*F46","v":0}]
[]
[null,"ÖSSZESEN:",{"$nulls":4},{"$f":"SUM(G40:G46)","v":0},{"$f":"SUM(H40:H46)","v":0}]
[]
[null,"Összesen anyag+díj",{"$nulls":4},{"$f":"G48+H48","v":0}]
[]
[]
[null,"Alagsori elosztóra 2 bdb dugalj felszerelése"]
[]
[1," 1 db 25A 30mA 2p. ÁVK, 1 db C16 A kismegszakító beszerelése az alagsori elosztóba, 2 db 2+F dugalj felszerelése az elosztó oldalára, a szükséges vezetékezéssel és segéd anyagokkal.",1,"klt",null,null,{"$f":"C55*E55","v":0},{"$f":"C55*F55","v":0}]
[2,"Érintésvédelmi mérés jegyzőkönyv készítéssel",1,"klt",null,null,{"$f":"C56*E56","v":0},{"$f":"C56*F56","v":0}]
[]
[null,"ÖSSZESEN:",{"$nulls":4},{"$f":"SUM(G55:G56)","v":0},{"$f":"SUM(H55:H56)","v":0}]
[]
[null,"Összesen anyag+díj",{"$nulls":4},{"$f":"G58+H58","v":0}]
[]
[]
[{"$nulls":4},"NETTÓ","ÁFA","BRUTTÓ"]
[null,null,null,"Alagsor:",{"$f":"G21+G34+G60","v":0},{"$f":"E64*0.27","v":0},{"$f":"E64+F64","v":0}]
[null,null,null,"310 szoba:",{"$f":"G50","v":0},{"$f":"E65*0.27","v":0},{"$f":"E65+F65","v":0}]
[{"$nulls":4},{"$f":"SUM(E64:E65)","v":0},{"$f":"SUM(F64:F65)","v":0},0]